fUSD/lending_fUSD_20250107
["ID","MTS","AMOUNT","RATE_DAILY","PERIOD"]
[348057094,1736286639355,-500.0,9.79e-05,2]
[348057095,1736286639365,-500.0,9.79e-05,2]
[348057096,1736286639379,-500.0,9.79e-05,2]
[348057097,1736286639389,-500.0,9.79e-05,2]
[348057098,1736286639398,-410.91770133,9.79e-05,2]
[348057099,1736286639407,-500.0,9.79e-05,2]
[348057100,1736286639417,-500.0,9.79e-05,2]
[348057101,1736286639426,-500.0,9.79e-05,2]
[348057102,1736286639436,-500.0,9.79e-05,2]
[348057103,1736286639446,-571.09,9.79e-05,2]
[348057104,1736286639456,-500.0,9.79e-05,2]
[348057105,1736286639467,-778.61,9.79e-05,2]
[348057106,1736286639477,-500.0,9.79e-05,2]
[348057107,1736286639487,-500.0,9.79e-05,2]
[348057108,1736286639496,-500.0,9.79e-05,2]
[348057110,1736286639506,-500.0,9.79e-05,2]
[348057112,1736286639515,-500.0,9.79e-05,2]
[348057113,1736286639525,-500.0,9.79e-05,2]
[348057114,1736286639535,-500.0,9.79e-05,2]
[348057115,1736286639545,-500.0,9.79e-05,2]
[348057116,1736286639556,-685.46,9.79e-05,2]
[348057117,1736286639565,-500.0,9.79e-05,2]
[348057118,1736286639576,-500.0,9.79e-05,2]
[348057119,1736286639587,-500.0,9.79e-05,2]
[348057120,1736286639600,-500.0,9.79e-05,2]
[348057121,1736286639611,-500.0,9.79e-05,2]
[348057122,1736286639622,-500.0,9.79e-05,2]
[348057123,1736286639632,-186.66697161,9.79e-05,2]
[348057124,1736286639641,-500.0,9.79e-05,2]
[348057125,1736286639651,-500.0,9.79e-05,2]
[348057126,1736286639660,-239.57452358,9.79e-05,2]
[348057127,1736286639670,-500.0,9.79e-05,2]
[348057128,1736286639679,-500.0,9.79e-05,2]
[348057129,1736286639689,-546.22,9.79e-05,2]
[348057130,1736286639698,-500.0,9.79e-05,2]
[348057131,1736286639708,-500.0,9.79e-05,2]
[348057132,1736286639717,-500.0,9.79e-05,2]
[348057133,1736286639726,-500.0,9.79e-05,2]
[348057134,1736286639735,-1108.29,9.79e-05,2]
[348057135,1736286639746,-500.0,9.79e-05,2]
[348057136,1736286639757,-500.0,9.79e-05,2]
[348057137,1736286639766,-500.0,9.79e-05,2]
[348057138,1736286639775,-500.0,9.79e-05,2]
[348057139,1736286639785,-500.0,9.79e-05,2]
[348057140,1736286639794,-500.0,9.79e-05,2]
[348057141,1736286639804,-500.0,9.79e-05,2]
[348057142,1736286639815,-500.0,9.79e-05,2]
[348057143,1736286639825,-500.0,9.79e-05,2]
[348057144,1736286639834,-500.0,9.79e-05,2]
[348057145,1736286639845,-500.0,9.79e-05,2]
[348057146,1736286639855,-500.0,9.79e-05,2]
[348057147,1736286639865,-500.0,9.79e-05,2]
[348057148,1736286639874,-500.0,9.79e-05,2]
[348057149,1736286639884,-500.0,9.79e-05,2]
[348057150,1736286639894,-500.0,9.79e-05,2]
[348057151,1736286639903,-500.0,9.79e-05,2]
[348057152,1736286639914,-812.09,9.79e-05,2]
[348057153,1736286639923,-500.0,9.79e-05,2]
[348057155,1736286639933,-500.0,9.79e-05,2]
[348057156,1736286639942,-500.0,9.79e-05,2]
[348057158,1736286639952,-500.0,9.79e-05,2]
[348057159,1736286639962,-500.0,9.79e-05,2]
[348057160,1736286639972,-917.91,9.79e-05,2]
[348057161,1736286639981,-269.16,9.79e-05,2]
[348057162,1736286639991,-500.0,9.79e-05,2]
[348057163,1736286640001,-500.0,9.79e-05,2]
[348057164,1736286640012,-500.0,9.79e-05,2]
[348057165,1736286640022,-500.0,9.79e-05,2]
[348057166,1736286640031,-500.0,9.79e-05,2]
[348057167,1736286640041,-500.0,9.79e-05,2]
[348057168,1736286640051,-500.0,9.79e-05,2]
[348057169,1736286640062,-794.86,9.79e-05,2]
[348057170,1736286640071,-500.0,9.79e-05,2]
[348057171,1736286640080,-543.07,9.79e-05,2]
[348057172,1736286640089,-500.0,9.79e-05,2]
[348057173,1736286640099,-576.4,9.79e-05,2]
[348057174,1736286640108,-645.52,9.79e-05,2]
[348057175,1736286640120,-500.0,9.79e-05,2]
[348057176,1736286640131,-500.0,9.79e-05,2]
[348057177,1736286640142,-613.48,9.79e-05,2]
[348057178,1736286640151,-500.0,9.79e-05,2]
[348057179,1736286640161,-500.0,9.79e-05,2]
[348057180,1736286640171,-500.0,9.79e-05,2]
[348057181,1736286640180,-928.79,9.79e-05,2]
[348057182,1736286640190,-500.0,9.79e-05,2]
[348057183,1736286640200,-500.0,9.79e-05,2]
[348057184,1736286640210,-503.7,9.79e-05,2]
[348057185,1736286640221,-500.0,9.79e-05,2]
[348057186,1736286640231,-500.0,9.79e-05,2]
[348057187,1736286640241,-500.0,9.79e-05,2]
[348057188,1736286640250,-500.0,9.79e-05,2]
[348057189,1736286640261,-586.52,9.79e-05,2]
[348057190,1736286640271,-500.0,9.79e-05,2]
[348057191,1736286640282,-500.0,9.79e-05,2]
[348057192,1736286640292,-635.89,9.79e-05,2]
[348057193,1736286640307,-500.0,9.79e-05,2]
[348057194,1736286640316,-607.54,9.79e-05,2]
[348057195,1736286640326,-500.0,9.79e-05,2]
[348057196,1736286640335,-500.0,9.79e-05,2]
[348057197,1736286640348,-500.0,9.79e-05,2]
[348057198,1736286640357,-725.25,9.79e-05,2]
[348057199,1736286640367,-500.0,9.79e-05,2]
[348057200,1736286640378,-500.0,9.79e-05,2]
[348057201,1736286640387,-500.0,9.79e-05,2]
[348057202,1736286640397,-500.0,9.79e-05,2]
[348057203,1736286640406,-500.0,9.79e-05,2]
[348057204,1736286640416,-500.0,9.79e-05,2]
[348057205,1736286640425,-500.0,9.79e-05,2]
[348057206,1736286640435,-714.09,9.79e-05,2]
[348057207,1736286640444,-1078.07,9.79e-05,2]
[348057208,1736286640453,-500.0,9.79e-05,2]
[348057209,1736286640462,-500.0,9.79e-05,2]
[348057210,1736286640472,-500.0,9.79e-05,2]
[348057211,1736286640482,-500.0,9.79e-05,2]
[348057212,1736286640491,-500.0,9.79e-05,2]
[348057213,1736286640500,-500.0,9.79e-05,2]
[348057214,1736286640510,-500.0,9.79e-05,2]
[348057215,1736286640519,-500.0,9.79e-05,2]
[348057216,1736286640528,-500.0,9.79e-05,2]
[348057217,1736286640538,-500.0,9.79e-05,2]
[348057218,1736286640547,-658.96,9.79e-05,2]
[348057219,1736286640557,-500.0,9.79e-05,2]
[348057220,1736286640566,-500.0,9.79e-05,2]
[348057221,1736286640575,-500.0,9.79e-05,2]
[348057222,1736286640585,-1221.34,9.79e-05,2]
[348057223,1736286640596,-500.0,9.79e-05,2]
[348057224,1736286640606,-500.0,9.79e-05,2]
[348057225,1736286640615,-500.0,9.79e-05,2]
[348057226,1736286640625,-500.0,9.79e-05,2]
[348057227,1736286640634,-607.67,9.79e-05,2]
[348057228,1736286640644,-825.11,9.79e-05,2]
[348057229,1736286640654,-399.78395961,9.79e-05,2]
[348057230,1736286640664,-500.0,9.79e-05,2]
[348057231,1736286640673,-500.0,9.79e-05,2]
[348057232,1736286640682,-500.0,9.79e-05,2]
[348057233,1736286640691,-500.0,9.79e-05,2]
[348057234,1736286640700,-1455.13,9.79e-05,2]
[348057235,1736286640709,-500.0,9.79e-05,2]
[348057236,1736286640718,-500.0,9.79e-05,2]
[348057237,1736286640727,-598.15,9.79e-05,2]
[348057238,1736286640737,-710.25,9.79e-05,2]
[348057239,1736286640746,-500.0,9.79e-05,2]
[348057240,1736286640755,-500.0,9.79e-05,2]
[348057241,1736286640765,-597.71,9.79e-05,2]
[348057242,1736286640774,-500.0,9.79e-05,2]
[348057243,1736286640783,-500.0,9.79e-05,2]
[348057244,1736286640793,-500.0,9.79e-05,2]
[348057245,1736286640803,-500.0,9.79e-05,2]
[348057246,1736286640812,-771.61,9.79e-05,2]
[348057247,1736286640822,-550.74,9.79e-05,2]
[348057248,1736286640831,-500.0,9.79e-05,2]
[348057249,1736286640841,-809.47,9.79e-05,2]
[348057250,1736286640850,-500.0,9.79e-05,2]
[348057251,1736286640859,-500.0,9.79e-05,2]
[348057252,1736286640868,-500.0,9.79e-05,2]
[348057253,1736286640878,-500.0,9.79e-05,2]
[348057254,1736286640887,-984.58,9.79e-05,2]
[348057255,1736286640897,-500.0,9.79e-05,2]
[348057256,1736286640907,-580.53,9.79e-05,2]
[348057257,1736286640916,-500.0,9.79e-05,2]
[348057258,1736286640926,-500.0,9.79e-05,2]
[348057259,1736286640935,-327.48,9.79e-05,2]
[348057260,1736286640945,-714.21,9.79e-05,2]
[348057261,1736286640954,-500.0,9.79e-05,2]
[348057262,1736286640964,-500.0,9.79e-05,2]
[348057263,1736286640973,-500.0,9.79e-05,2]
[348057264,1736286640983,-500.0,9.79e-05,2]
[348057265,1736286640992,-929.04,9.79e-05,2]
[348057266,1736286641002,-500.0,9.79e-05,2]
[348057267,1736286641011,-500.0,9.79e-05,2]
[348057268,1736286641021,-500.0,9.79e-05,2]
[348057269,1736286641030,-500.0,9.79e-05,2]
[348057270,1736286641039,-500.0,9.79e-05,2]
[348057271,1736286641049,-720.6,9.79e-05,2]
[348057272,1736286641059,-500.0,9.79e-05,2]
[348057273,1736286641069,-500.0,9.79e-05,2]
[348057274,1736286641252,-500.0,9.79e-05,2]
[348057275,1736286641261,-646.75,9.79e-05,2]
[348057276,1736286641271,-500.0,9.79e-05,2]
[348057277,1736286641280,-500.0,9.79e-05,2]
[348057278,1736286641290,-571.98,9.79e-05,2]
[348057279,1736286641302,-500.0,9.79e-05,2]
[348057280,1736286641312,-500.0,9.79e-05,2]
[348057281,1736286641321,-500.0,9.79e-05,2]
[348057282,1736286641330,-500.0,9.79e-05,2]
[348057283,1736286641341,-587.02,9.79e-05,2]
[348057284,1736286641351,-500.0,9.79e-05,2]
[348057285,1736286641360,-500.0,9.79e-05,2]
[348057286,1736286641369,-500.0,9.79e-05,2]
[348057287,1736286641379,-500.0,9.79e-05,2]
[348057288,1736286641389,-500.0,9.79e-05,2]
[348057289,1736286641399,-500.0,9.79e-05,2]
[348057290,1736286641407,-604.39,9.79e-05,2]
[348057291,1736286641416,-500.0,9.79e-05,2]
[348057292,1736286641426,-500.0,9.79e-05,2]
[348057293,1736286641435,-500.0,9.79e-05,2]
[348057294,1736286641445,-500.0,9.79e-05,2]
[348057295,1736286641454,-500.0,9.79e-05,2]
[348057296,1736286641464,-500.0,9.79e-05,2]
[348057297,1736286641473,-500.0,9.79e-05,2]
[348057298,1736286641483,-762.08,9.79e-05,2]
[348057299,1736286641491,-500.0,9.79e-05,2]
[348057300,1736286641501,-1041.3,9.79e-05,2]
[348057301,1736286641511,-500.0,9.79e-05,2]
[348057302,1736286641520,-500.0,9.79e-05,2]
[348057303,1736286641529,-500.0,9.79e-05,2]
[348057304,1736286641538,-500.0,9.79e-05,2]
[348057305,1736286641547,-501.14,9.79e-05,2]
[348057306,1736286641558,-500.0,9.79e-05,2]
[348057307,1736286641567,-500.0,9.79e-05,2]
[348057308,1736286641576,-500.0,9.79e-05,2]
[348057309,1736286641586,-500.0,9.79e-05,2]
[348057310,1736286641597,-500.0,9.79e-05,2]
[348057311,1736286641607,-500.0,9.79e-05,2]
[348057312,1736286641618,-1761.18,9.79e-05,2]
[348057313,1736286641628,-186.23346614,9.79e-05,2]
[348057314,1736286641637,-500.0,9.79e-05,2]
[348057315,1736286641647,-500.0,9.79e-05,2]
[348057316,1736286641657,-500.0,9.79e-05,2]
[348057317,1736286641666,-682.32,9.79e-05,2]
[348057318,1736286641675,-500.0,9.79e-05,2]
[348057319,1736286641685,-500.0,9.79e-05,2]
[348057320,1736286641696,-500.0,9.79e-05,2]
[348057321,1736286641709,-500.0,9.79e-05,2]
[348057322,1736286641718,-500.0,9.79e-05,2]
[348057323,1736286641727,-500.0,9.79e-05,2]
[348057324,1736286641738,-152.46,9.79e-05,2]
[348057325,1736286641748,-548.99,9.79e-05,2]
[348057326,1736286641757,-500.0,9.79e-05,2]
[348057327,1736286641766,-500.0,9.79e-05,2]
[348057328,1736286641775,-500.0,9.79e-05,2]
[348057329,1736286641785,-1175.83,9.79e-05,2]
[348057330,1736286641794,-500.0,9.79e-05,2]
[348057331,1736286641803,-500.0,9.79e-05,2]
[348057332,1736286641812,-500.0,9.79e-05,2]
[348057333,1736286641822,-500.0,9.79e-05,2]
[348057334,1736286641831,-1487.04,9.79e-05,2]
[348057335,1736286641841,-500.0,9.79e-05,2]
[348057336,1736286641851,-1202.58,9.79e-05,2]
[348057337,1736286641860,-500.0,9.79e-05,2]
[348057338,1736286641870,-512.45,9.79e-05,2]
[348057339,1736286641880,-1610.07,9.79e-05,2]
[348057340,1736286641890,-500.0,9.79e-05,2]
[348057341,1736286641900,-500.0,9.79e-05,2]
[348057342,1736286641910,-500.0,9.79e-05,2]
[348057343,1736286641919,-715.46,9.79e-05,2]
[348057344,1736286641928,-500.0,9.79e-05,2]
[348057345,1736286641937,-500.0,9.79e-05,2]
[348057346,1736286641947,-500.0,9.79e-05,2]
[348057347,1736286641956,-500.0,9.79e-05,2]
[348057348,1736286641965,-500.0,9.79e-05,2]
[348057349,1736286641975,-666.28,9.79e-05,2]
[348057350,1736286641985,-612.63,9.79e-05,2]
[348057351,1736286641995,-500.0,9.79e-05,2]
[348057352,1736286642004,-500.0,9.791e-05,2]
[348057353,1736286642015,-500.0,9.791e-05,2]
[348057354,1736286642025,-550.72045438,9.791e-05,2]
[348057355,1736286642034,-588.68748831,9.791e-05,2]
[348057356,1736286642044,-500.0,9.791e-05,2]
[348057357,1736286642054,-581.11322584,9.791e-05,2]
[348057358,1736286642063,-500.0,9.791e-05,2]
[348057359,1736286642073,-527.07015604,9.791e-05,2]
[348057360,1736286642083,-500.0,9.791e-05,2]
[348057361,1736286642092,-500.0,9.791e-05,2]
[348057362,1736286642101,-866.98,9.791e-05,2]
[348057363,1736286642111,-620.52,9.791e-05,2]
[348057364,1736286642120,-500.0,9.791e-05,2]
[348057365,1736286642132,-576.75,9.791e-05,2]
[348057366,1736286642142,-500.0,9.791e-05,2]
[348057367,1736286642151,-1042.61,9.791e-05,2]
[348057368,1736286642161,-605.45,9.791e-05,2]
[348057369,1736286642170,-567.02,9.791e-05,2]
[348057370,1736286642179,-609.63,9.791e-05,2]
[348057371,1736286642188,-1053.59,9.791e-05,2]
[348057372,1736286642198,-500.0,9.791e-05,2]
[348057373,1736286642207,-1311.06,9.791e-05,2]
[348057374,1736286642216,-794.88,9.791e-05,2]
[348057375,1736286642225,-729.16,9.791e-05,2]
[348057376,1736286642234,-1193.6,9.791e-05,2]
[348057377,1736286642243,-725.61,9.791e-05,2]
[348057378,1736286642252,-500.0,9.791e-05,2]
[348057379,1736286642261,-653.77,9.791e-05,2]
[348057380,1736286642270,-500.0,9.791e-05,2]
[348057381,1736286642279,-1533.86,9.791e-05,2]
[348057382,1736286642288,-694.41,9.791e-05,2]
[348057383,1736286642301,-1473.58,9.791e-05,2]
[348057384,1736286642310,-500.0,9.791e-05,2]
[348057385,1736286642319,-1548.26,9.791e-05,2]
[348057386,1736286642328,-500.0,9.791e-05,2]
[348057387,1736286642338,-669.37,9.791e-05,2]
[348057389,1736286642347,-500.0,9.791e-05,2]
[348057390,1736286642357,-1072.03,9.791e-05,2]
[348057392,1736286642366,-500.0,9.791e-05,2]
[348057394,1736286642378,-500.0,9.791e-05,2]
[348057395,1736286642387,-604.48,9.791e-05,2]
[348057396,1736286642397,-1029.2,9.792e-05,2]
[348057397,1736286642406,-1947.39,9.792e-05,2]
[348057398,1736286642416,-2408.74,9.792e-05,2]
[348057399,1736286642425,-2351.17,9.792e-05,2]
[348057400,1736286642434,-4540.5,9.792e-05,2]
[348057401,1736286642444,-9069.31,9.792e-05,2]
[348057402,1736286642453,-1946.71,9.792e-05,2]
[348057403,1736286642462,-1441.01,9.792e-05,2]
[348057404,1736286642472,-3596.52,9.792e-05,2]
[348057405,1736286642481,-1318.69,9.792e-05,2]
[348057406,1736286642492,-583.02,9.792e-05,2]
[348057408,1736286642501,-2178.58,9.793e-05,2]
[348057410,1736286642511,-4950.63,9.793e-05,2]
[348057411,1736286642520,-4012.98,9.793e-05,2]
[348057412,1736286642529,-500.0,9.793e-05,2]
[348057413,1736286642538,-1909.45,9.793e-05,2]
[348057414,1736286642548,-4906.05,9.793e-05,2]
[348057415,1736286642557,-563.89,9.793e-05,2]
[348057416,1736286642566,-500.0,9.793e-05,2]
[348057417,1736286642575,-286.89,9.793e-05,2]
[348057418,1736286642585,-500.0,9.793e-05,2]
[348057419,1736286642595,-524.52,9.793e-05,2]
[348057420,1736286642605,-500.0,9.793e-05,2]
[348057422,1736286642614,-500.0,9.793e-05,2]
[348057424,1736286642626,-671.63,9.793e-05,2]
[348057426,1736286642635,-500.0,9.793e-05,2]
[348057428,1736286642644,-160.28,9.793e-05,2]
[348057430,1736286642654,-274.6,9.793e-05,2]
[348057431,1736286642665,-500.0,9.793e-05,2]
[348057432,1736286642674,-1335.33,9.793e-05,2]
[348057433,1736286642683,-1515.93,9.793e-05,2]
[348057434,1736286642692,-2487.9,9.793e-05,2]
[348057435,1736286642701,-2293.11,9.793e-05,2]
[348057436,1736286642710,-2975.78,9.793e-05,2]
[348057437,1736286642719,-1913.52,9.793e-05,2]
[348057438,1736286642728,-5869.23,9.793e-05,2]
[348057439,1736286642738,-2782.46,9.793e-05,2]
[348057440,1736286642747,-4285.35,9.793e-05,2]
[348057441,1736286642756,-2365.18,9.793e-05,2]
[348057442,1736286642765,-2520.27,9.793e-05,2]
[348057443,1736286642774,-500.0,9.793e-05,2]
[348057444,1736286642783,-1155.96,9.793e-05,2]
[348057445,1736286642792,-4313.06,9.793e-05,2]
[348057446,1736286642802,-1746.66,9.793e-05,2]
[348057447,1736286642811,-1836.64,9.793e-05,2]
[348057448,1736286642820,-1927.6,9.793e-05,2]
[348057449,1736286642829,-1566.36,9.794e-05,2]
[348057450,1736286642838,-2032.45,9.794e-05,2]
[348057451,1736286642847,-1435.53,9.794e-05,2]
[348057452,1736286642856,-2930.83,9.794e-05,2]
[348057453,1736286642865,-1177.54,9.794e-05,2]
[348057454,1736286642876,-1677.69,9.794e-05,2]
[348057455,1736286642886,-1124.64,9.794e-05,2]
[348057456,1736286642895,-3950.24,9.794e-05,2]
[348057457,1736286642905,-3280.38,9.794e-05,2]
[348057458,1736286642914,-150.0,9.8e-05,2]
[348057459,1736286642924,-35000.0,9.898e-05,2]
[348057460,1736286642933,-3553.746,9.899e-05,2]
[348057461,1736286642943,-162.372,9.899e-05,2]
[348057462,1736286642952,-31032.09436288,9.9e-05,2]
[348057464,1736286643135,-1625.8050776,9.9e-05,2]
[348057466,1736286643147,-4839.1849,9.9e-05,2]
[348057467,1736286643168,-486.87103,9.9e-05,2]
[348057471,1736286643480,-274.176,9.788e-05,2]
[348057472,1736286643503,-225.824,9.788e-05,2]
[348057473,1736286643512,-160.77963009,9.9e-05,2]
[348057474,1736286643523,-12327.39079291,9.9e-05,2]
[348057475,1736286644055,-639.29142536,9.9e-05,2]
[348057476,1736286644067,-2715.84665235,9.9e-05,2]
[348057477,1736286644086,-9686.57307998,9.9e-05,2]
[348057478,1736286644103,-1827.4623212,9.9e-05,2]
[348057479,1736286644114,-2238.99168339,9.9e-05,2]
[348057480,1736286644133,-24130.78262889,9.9e-05,2]
[348057481,1736286644143,-500.0,9.973e-05,2]
[348057482,1736286644152,-152.04538136,9.973e-05,2]
[348057483,1736286644161,-241.6803545,9.973e-05,2]
[348057484,1736286644172,-263.3191146,9.973e-05,2]
[348057485,1736286644181,-196.84047186,9.981e-05,2]
[348057486,1736286644190,-4018.6543228,9.994e-05,2]
[348057487,1736286644200,-3805.8030337,9.994e-05,2]
[348057488,1736286644209,-500.0,9.999e-05,2]
[348057489,1736286644218,-781.82,9.999e-05,2]
[348057490,1736286644228,-1997.62,9.999e-05,2]
[348057491,1736286644237,-1272.06,9.999e-05,2]
[348057492,1736286644246,-1402.48,9.999e-05,2]
[348057493,1736286644255,-1300.0,0.0001,2]
[348057494,1736286644264,-150.0,0.0001,2]
[348057495,1736286644273,-186118.09330385,0.0001,2]
[348057496,1736286644288,-809.98594867,0.0001,2]
[348057497,1736286644316,-7228.80471292,0.0001,2]
[348057498,1736286644327,-35087.29238713,0.0001,2]
[348057499,1736286644339,-665.17985081,0.0001,2]
[348057500,1736286644362,-4975.51485734,0.0001,2]
[348057501,1736286644374,-686.03253807,0.0001,2]
[348057502,1736286644714,-593.87,9.79e-05,2]
[348057503,1736286644724,-6404.47033099,0.0001,2]
[348057504,1736286644736,-31869.31121265,0.0001,2]
[348057505,1736286644747,-266697.88555835,0.0001,2]
[348057506,1736286644758,-36500.69057759,0.0001,2]
[348057507,1736286644789,-475.51,0.0001,2]
[348057508,1736286644825,-27045.86,0.0001,2]
[348057509,1736286644838,-489.4,0.0001,2]
[348057510,1736286644850,-350.79000003,0.0001,2]
[348057511,1736286645423,-378.07537845,0.0001,2]
[348057513,1736286645622,-23587.32902737,0.0001,2]
[348057514,1736286645644,-500.0,9.789e-05,2]
[348057515,1736286645654,-2689.506688,0.0001,2]
[348057516,1736286645670,-9685.7328,0.0001,2]
[348057517,1736286645681,-293.6576016,0.0001,2]
[348057518,1736286645697,-600.0,0.0001,2]
[348057519,1736286645708,-1079.55392289,0.0001,2]
[348057520,1736286645731,-1724.47880905,0.0001,2]
[348057534,1736286646566,-1000.0,9.689e-05,2]
[348057535,1736286646576,-39.449305,9.788e-05,2]
[348057536,1736286646588,-178.09346044,9.788e-05,2]
[348057537,1736286646597,-4666.90653956,0.0001,2]
[348057538,1736286646617,-15727.32130979,0.0001,2]
[348057539,1736286646628,-1000.0,0.0001,2]
[348057540,1736286646639,-376.75212113,0.0001,2]
[348057541,1736286646674,-367.77018903,0.0001,2]
[348057542,1736286646699,-885861.43044217,0.0001,2]
[348057543,1736286666881,500.0,0.00027397,120]
[348057544,1736286667340,500.0,0.00027397,120]
[348057545,1736286667855,500.0,0.00027397,120]
[348057546,1736286667962,800.0,0.00027397,120]
[348057547,1736286668290,500.0,0.00027397,120]
[348057548,1736286668518,1000001.0,0.00027397,59]
[348057549,1736286668746,500.0,0.00027397,120]
[348057550,1736286669213,608.81505813,0.00027397,120]
[348057551,1736286669750,1706.27,8.219e-05,2]
[348057552,1736286684342,1000002.0,0.00027397,59]
[348057553,1736286686662,1000003.0,0.00027397,59]
[348057554,1736286689068,1000004.0,0.00027397,59]
[348057555,1736286691410,1000005.0,0.00027397,59]
[348057556,1736286694442,1000006.0,0.00027397,59]
[348057557,1736286697169,1000007.0,0.00027397,59]
[348057558,1736286700614,1000008.0,0.00027397,59]
[348057559,1736286703680,1000009.0,0.00027397,59]
[348057560,1736286714223,1000010.0,0.00027397,59]
[348057561,1736286722714,800.0,0.00027397,120]
[348057562,1736286788039,800.0,0.00027397,120]
[348057563,1736286794549,500.0,0.00024529,120]
[348057564,1736286794920,500.0,0.00027396,120]
[348057565,1736286797498,2000.0,0.00024529,120]
[348057566,1736286797926,1393.628186,0.00027396,120]
[348057567,1736286800585,500.0,0.00024529,120]
[348057568,1736286809800,500.0,0.00025266,120]
[348057569,1736286810152,500.0,0.00026985,120]
[348057570,1736286833873,200.0,0.00024529,120]
[348057571,1736286834191,200.0,0.00027396,120]
[348057572,1736286845925,800.0,0.00027397,120]
[348057573,1736286890536,153.477072,0.00024657,59]
[348057574,1736286902453,153.477072,0.00026849,59]
[348057575,1736286908914,800.0,0.00027397,120]
[348057576,1736286950001,200.0,0.00027397,60]
[348057577,1736286953262,10000.0,0.00027397,59]
[348057578,1736286962236,153.477072,0.00027397,59]
[348057579,1736286970079,800.0,0.00027397,120]
[348057580,1736286981591,-228748.26478929,0.00018196,10]
[348057581,1736286981620,-4764.76755186,0.00018196,10]
[348057582,1736286981647,-940.94910269,0.00018196,20]
[348057583,1736286981674,-16198.97910585,0.00018196,20]
[348057584,1736286981701,-828.71611619,0.00018196,10]
[348057585,1736286981727,-10522.14774168,0.00018196,15]
[348057586,1736286981757,-358.58288754,0.00018196,11]
[348057587,1736286981785,-40000.0,0.00018196,10]
[348057588,1736286981814,-1467.53667471,0.00018196,10]
[348057589,1736286981841,-693.57631002,0.00018196,10]
[348057590,1736286981868,-1007.66889258,0.00018196,15]
[348057591,1736286981895,-96503.32924237,0.00018196,10]
[348057592,1736286981923,-300.0,0.00018196,15]
[348057593,1736286981948,-1218.35628658,0.00018196,15]
[348057594,1736286981976,-2203.39365662,0.00018196,10]
[348057595,1736286982003,-2233.26192541,0.00018196,10]
[348057596,1736286982030,-1000.0,0.00018196,10]
[348057597,1736286982056,-500.0,0.00018196,10]
[348057598,1736286982083,-269.77884424,0.00018196,10]
[348057599,1736286982109,-22972.51853921,0.00018196,15]
[348057600,1736286982135,-7468.0,0.00018196,10]
[348057601,1736286982161,-95449.75318366,0.00018196,16]
[348057602,1736286982187,-159.0,0.00018196,30]
[348057603,1736286982213,-202.6,0.00018196,30]
[348057604,1736286982239,-202.8,0.00018196,30]
[348057605,1736286982268,-250.0,0.00018196,30]
[348057606,1736286982294,-343.037974,0.00018196,30]
[348057607,1736286984491,10000.0,0.00027,120]
[348057608,1736286989458,5946.0,0.00027,59]
[348057609,1736287002928,10000.0,0.00027,120]
[348057610,1736287012320,10000.0,0.00027,120]
[348057611,1736287027697,800.0,0.00027397,120]
[348057612,1736287203153,171.054459,0.0002,120]
[348057613,1736287291400,150.0,0.00021021,120]
[348057614,1736287359633,-150.5,0.0002497,120]
[348057615,1736287359662,-150.5,0.0002497,120]
[348057616,1736287359689,-685.0,0.0002497,120]
[348057617,1736287359717,-150.5,0.0002497,120]
[348057618,1736287359745,-150.5,0.0002497,120]
[348057619,1736287359773,-685.0,0.0002497,120]
[348057620,1736287359801,-150.5,0.0002498,120]
[348057621,1736287359826,-150.5,0.0002498,120]
[348057622,1736287359851,-685.0,0.0002498,120]
[348057623,1736287359876,-150.5,0.0002498,120]
[348057624,1736287359904,-150.5,0.0002498,120]
[348057625,1736287359930,-685.0,0.0002498,120]
[348057626,1736287359956,-150.5,0.0002498,120]